[Event "Live Chess"]
[Site "Chess.com"]
[Date "2023.05.20"]
[Round "-"]
[White "onemoretime1975"]
[Black "Sacbutt"]
[Result "0-1"]
[WhiteElo "1912"]
[BlackElo "2197"]
[TimeControl "300"]
[EndTime "12:59:21 PDT"]
[Termination "Sacbutt won by resignation"]

1. e4 {[%clk 0:04:56.5]} 1... e5 {[%clk 0:04:58.2]} 2. Nf3 {[%clk 0:04:54.5]}
2... Nc6 {[%clk 0:04:57.4]} 3. Bc4 {[%clk 0:04:52.5]} 3... Bc5 {[%clk
0:04:56.1]} 4. d3 {[%clk 0:04:50.9]} 4... Nf6 {[%clk 0:04:54.3]} 5. c3 {[%clk
0:04:47.9]} 5... O-O {[%clk 0:04:52.4]} 6. O-O {[%clk 0:04:45.2]} 6... h6 {[%clk
0:04:49]} 7. Bb3 {[%clk 0:04:38.6]} 7... a6 {[%clk 0:04:40.4]} 8. h3 {[%clk
0:04:34.1]} 8... d6 {[%clk 0:04:38.1]} 9. Be3 {[%clk 0:04:20.7]} 9... Ba7 {[%clk
0:04:33.6]} 10. Bxa7 {[%clk 0:04:17.2]} 10... Rxa7 {[%clk 0:04:31.7]} 11. Nh2
{[%clk 0:04:12.2]} 11... Be6 {[%clk 0:04:29.6]} 12. f4 {[%clk 0:04:04.5]} 12...
exf4 {[%clk 0:04:25.5]} 13. Rxf4 {[%clk 0:04:00.6]} 13... d5 {[%clk 0:04:21.4]}
14. exd5 {[%clk 0:03:28.3]} 14... Nxd5 {[%clk 0:04:18.3]} 15. Bxd5 {[%clk
0:03:26.9]} 15... Qxd5 {[%clk 0:04:13.5]} 16. d4 {[%clk 0:03:21.4]} 16... Raa8
{[%clk 0:03:54.8]} 17. Nd2 {[%clk 0:03:13.7]} 17... Qg5 {[%clk 0:03:49.7]} 18.
Qf3 {[%clk 0:02:41.2]} 18... Bd5 {[%clk 0:03:23.6]} 19. Qg4 {[%clk 0:02:30.3]}
19... Qxg4 {[%clk 0:03:08.5]} 20. Nxg4 {[%clk 0:02:27.4]} 20... f5 {[%clk
0:02:58.6]} 21. Ne3 {[%clk 0:02:18.1]} 21... Ne7 {[%clk 0:02:52.8]} 22. c4
{[%clk 0:02:11.8]} 22... g5 {[%clk 0:02:43.6]} 23. Rff1 {[%clk 0:02:01.2]} 23...
Be6 {[%clk 0:02:29.5]} 24. d5 {[%clk 0:01:59]} 24... Bd7 {[%clk 0:02:26.8]} 25.
Nb3 {[%clk 0:01:48.5]} 25... Rae8 {[%clk 0:02:21.3]} 26. Rae1 {[%clk 0:01:45]}
26... f4 {[%clk 0:02:18]} 27. Nc2 {[%clk 0:01:39.4]} 27... Nf5 {[%clk
0:02:16.8]} 28. Rxe8 {[%clk 0:01:35.9]} 28... Rxe8 {[%clk 0:02:15.2]} 29. Ncd4
{[%clk 0:01:34.6]} 29... Ne3 {[%clk 0:02:11.5]} 30. Re1 {[%clk 0:01:28.5]} 30...
Nxc4 {[%clk 0:02:07.3]} 31. Rxe8+ {[%clk 0:01:25]} 31... Bxe8 {[%clk 0:02:07.2]}
32. Ne6 {[%clk 0:01:19.9]} 32... c6 {[%clk 0:02:00.8]} 33. dxc6 {[%clk 0:01:04]}
33... Bxc6 {[%clk 0:01:59.1]} 34. Nbd4 {[%clk 0:01:01.4]} 34... Nxb2 {[%clk
0:01:56.6]} 35. Nxc6 {[%clk 0:00:58]} 35... bxc6 {[%clk 0:01:55]} 36. Nd4 {[%clk
0:00:52.1]} 36... c5 {[%clk 0:01:51.4]} 37. Nc2 {[%clk 0:00:46.3]} 37... h5
{[%clk 0:01:45.4]} 38. Kf2 {[%clk 0:00:45.3]} 38... c4 {[%clk 0:01:44.1]} 39.
Ke2 {[%clk 0:00:42.1]} 39... Kf7 {[%clk 0:01:41]} 40. Kd2 {[%clk 0:00:38]} 40...
Na4 {[%clk 0:01:30.9]} 41. Na3 {[%clk 0:00:33.4]} 41... c3+ {[%clk 0:01:28.8]}
42. Kd3 {[%clk 0:00:31.8]} 42... Kf6 {[%clk 0:01:23.5]} 43. Nc2 {[%clk
0:00:26.3]} 43... Ke5 {[%clk 0:01:18.2]} 44. Nb4 {[%clk 0:00:23.5]} 44... g4
{[%clk 0:01:10.6]} 45. hxg4 {[%clk 0:00:21.2]} 45... hxg4 {[%clk 0:01:09.2]} 46.
Nc6+ {[%clk 0:00:19.9]} 46... Kf5 {[%clk 0:01:04.1]} 47. Nb4 {[%clk 0:00:17.6]}
47... f3 {[%clk 0:00:54.9]} 48. gxf3 {[%clk 0:00:15.5]} 48... gxf3 {[%clk
0:00:42.6]} 49. Nxa6 {[%clk 0:00:13.3]} 49... f2 {[%clk 0:00:30.9]} 50. Ke2
{[%clk 0:00:09]} 50... c2 {[%clk 0:00:29.2]} 0-1

[Event "Live Chess"]
[Site "Chess.com"]
[Date "2023.05.20"]
[Round "-"]
[White "ramses-IIG"]
[Black "Shepherds_Pie"]
[Result "0-1"]
[WhiteElo "825"]
[BlackElo "1898"]
[TimeControl "300"]
[EndTime "12:59:23 PDT"]
[Termination "Shepherds_Pie won by resignation"]

1. e4 {[%clk 0:04:58.5]} 1... e6 {[%clk 0:04:52]} 2. Nf3 {[%clk 0:04:58.4]} 2...
c5 {[%clk 0:04:49.4]} 3. Bc4 {[%clk 0:04:56.8]} 3... d5 {[%clk 0:04:47.2]} 4.
exd5 {[%clk 0:04:54.2]} 4... exd5 {[%clk 0:04:46.1]} 5. Bb3 {[%clk 0:04:53.6]}
5... Nc6 {[%clk 0:04:43.8]} 6. O-O {[%clk 0:04:51.6]} 6... Nf6 {[%clk
0:04:42.6]} 7. Qe2+ {[%clk 0:04:46.5]} 7... Be7 {[%clk 0:04:41]} 8. Ne5 {[%clk
0:04:43.8]} 8... O-O {[%clk 0:04:38.9]} 9. Nxc6 {[%clk 0:04:39.4]} 9... bxc6
{[%clk 0:04:37.5]} 10. d3 {[%clk 0:04:37.1]} 10... Re8 {[%clk 0:04:36.3]} 11.
Bg5 {[%clk 0:04:34.8]} 11... Bd6 {[%clk 0:04:33.9]} 12. Qf3 {[%clk 0:04:15.2]}
12... Be7 {[%clk 0:04:30.7]} 13. c3 {[%clk 0:04:11]} 13... Bg4 {[%clk
0:04:28.4]} 14. Qg3 {[%clk 0:04:00.4]} 14... Bf5 {[%clk 0:04:19.6]} 15. Bc2
{[%clk 0:03:54]} 15... Bg6 {[%clk 0:04:16.6]} 16. h3 {[%clk 0:03:53.3]} 16... h6
{[%clk 0:04:13.4]} 17. Bxf6 {[%clk 0:03:44.9]} 17... Bxf6 {[%clk 0:04:12.1]} 18.
Nd2 {[%clk 0:03:42.9]} 18... Qd7 {[%clk 0:04:02.2]} 19. Nf3 {[%clk 0:03:19]}
19... Re2 {[%clk 0:04:02.1]} 20. Rac1 {[%clk 0:03:01.8]} 20... Rae8 {[%clk
0:04:02]} 21. Rfe1 {[%clk 0:02:45.7]} 21... d4 {[%clk 0:04:01.9]} 22. Rxe2
{[%clk 0:02:44]} 22... Rxe2 {[%clk 0:03:59.6]} 23. c4 {[%clk 0:02:39.9]} 23...
Qe8 {[%clk 0:03:57]} 24. Qd6 {[%clk 0:02:15.9]} 24... Bh5 {[%clk 0:03:52.9]} 25.
Qxc5 {[%clk 0:02:05.9]} 25... Bxf3 {[%clk 0:03:51.1]} 26. gxf3 {[%clk
0:02:04.4]} 26... Re1+ {[%clk 0:03:50.1]} 27. Rxe1 {[%clk 0:02:01.9]} 27...
Qxe1+ {[%clk 0:03:48.7]} 28. Kg2 {[%clk 0:02:01.5]} 28... Bh4 {[%clk 0:03:47.2]}
29. Qxd4 {[%clk 0:01:58.3]} 29... Qe7 {[%clk 0:03:44.6]} 30. Qe3 {[%clk
0:01:42.2]} 30... Bg5 {[%clk 0:03:41.5]} 31. Qxe7 {[%clk 0:01:40.1]} 31... Bxe7
{[%clk 0:03:40.1]} 32. d4 {[%clk 0:01:36.8]} 32... Bf6 {[%clk 0:03:38.9]} 33. d5
{[%clk 0:01:28.3]} 33... cxd5 {[%clk 0:03:36.7]} 34. cxd5 {[%clk 0:01:28.2]}
34... Bxb2 {[%clk 0:03:35.1]} 35. d6 {[%clk 0:01:27.2]} 35... Kf8 {[%clk
0:03:32.7]} 36. Ba4 {[%clk 0:01:24.4]} 36... Bd4 {[%clk 0:03:27.2]} 37. d7
{[%clk 0:01:23.6]} 37... Bb6 {[%clk 0:03:26]} 38. f4 {[%clk 0:01:20.6]} 38...
Ke7 {[%clk 0:03:25.1]} 39. f3 {[%clk 0:01:19.3]} 39... h5 {[%clk 0:03:21.3]} 40.
Kg3 {[%clk 0:01:18.5]} 40... g6 {[%clk 0:03:19.9]} 41. f5 {[%clk 0:01:13.5]}
41... Bc7+ {[%clk 0:03:18.1]} 42. Kf2 {[%clk 0:01:10.5]} 42... g5 {[%clk
0:03:16.7]} 43. Ke3 {[%clk 0:01:08.6]} 43... Kf6 {[%clk 0:03:15.2]} 44. Ke4
{[%clk 0:01:07.3]} 44... Ke7 {[%clk 0:03:11.6]} 45. h4 {[%clk 0:00:58.5]} 45...
gxh4 {[%clk 0:03:06.5]} 46. f4 {[%clk 0:00:49.8]} 46... h3 {[%clk 0:03:03.9]}
47. Kf3 {[%clk 0:00:49.4]} 47... h2 {[%clk 0:03:02.2]} 48. Kg2 {[%clk
0:00:48.8]} 48... Bxf4 {[%clk 0:03:00.7]} 49. a3 {[%clk 0:00:46]} 49... h4
{[%clk 0:02:58.5]} 50. f6+ {[%clk 0:00:44.1]} 50... Kd8 {[%clk 0:02:55.4]} 51.
Bc6 {[%clk 0:00:37.5]} 51... Bg5 {[%clk 0:02:52.4]} 52. Kxh2 {[%clk 0:00:33.8]}
52... Bxf6 {[%clk 0:02:51.2]} 53. Kh3 {[%clk 0:00:33.4]} 53... Be7 {[%clk
0:02:49]} 54. a4 {[%clk 0:00:25.8]} 54... Kc7 {[%clk 0:02:48.1]} 55. Bb5 {[%clk
0:00:23.9]} 55... Kb6 {[%clk 0:02:45.8]} 56. Kg4 {[%clk 0:00:19.5]} 56... a6
{[%clk 0:02:41.4]} 57. Kh3 {[%clk 0:00:14.9]} 57... axb5 {[%clk 0:02:39]} 58.
d8=Q+ {[%clk 0:00:14.1]} 58... Bxd8 {[%clk 0:02:36.5]} 59. axb5 {[%clk 0:00:14]}
59... Kxb5 {[%clk 0:02:34.9]} 60. Kg4 {[%clk 0:00:13]} 60... Kc5 {[%clk
0:02:33.8]} 61. Kh3 {[%clk 0:00:12.9]} 61... Kd5 {[%clk 0:02:32.8]} 0-1

[Event "Live Chess"]
[Site "Chess.com"]
[Date "2023.05.20"]
[Round "-"]
[White "ossie57"]
[Black "LodeshChess"]
[Result "1-0"]
[WhiteElo "1916"]
[BlackElo "1041"]
[TimeControl "300"]
[EndTime "12:59:35 PDT"]
[Termination "ossie57 won by resignation"]

1. d4 {[%clk 0:04:58]} 1... Nf6 {[%clk 0:04:58.7]} 2. Nc3 {[%clk 0:04:57.3]}
2... e6 {[%clk 0:04:57.4]} 3. Bf4 {[%clk 0:04:54.9]} 3... Bb4 {[%clk 0:04:56.4]}
4. Qd3 {[%clk 0:04:52.9]} 4... O-O {[%clk 0:04:54.1]} 5. O-O-O {[%clk
0:04:45.4]} 5... Nd5 {[%clk 0:04:51.3]} 6. Nxd5 {[%clk 0:04:44.3]} 6... exd5
{[%clk 0:04:46.8]} 7. Qg3 {[%clk 0:04:42.3]} 7... Re8 {[%clk 0:04:29.2]} 8. Bxc7
{[%clk 0:04:34.6]} 8... Qf6 {[%clk 0:04:18.4]} 9. Bxb8 {[%clk 0:04:31.2]} 9...
Rxb8 {[%clk 0:04:17.2]} 10. Qxb8 {[%clk 0:04:27]} 10... d6 {[%clk 0:04:10.2]}
11. Qxa7 {[%clk 0:04:17.2]} 11... Qxf2 {[%clk 0:04:02.1]} 12. Qa4 {[%clk
0:04:08.2]} 12... Qe3+ {[%clk 0:03:57.3]} 13. Kb1 {[%clk 0:04:06.2]} 13... Bd2
{[%clk 0:03:21.1]} 14. Nf3 {[%clk 0:03:57.7]} 14... Bg4 {[%clk 0:02:58]} 15.
Nxd2 {[%clk 0:03:47]} 15... Bxe2 {[%clk 0:02:56.7]} 16. Bxe2 {[%clk 0:03:42.3]}
16... Qxe2 {[%clk 0:02:55.9]} 17. Nf3 {[%clk 0:03:33.2]} 17... Kf8 {[%clk
0:02:46.2]} 18. Rhe1 {[%clk 0:03:25.6]} 1-0

[Event "Live Chess"]
[Site "Chess.com"]
[Date "2023.05.20"]
[Round "-"]
[White "mightysmasher"]
[Black "smoggyrabbit"]
[Result "1-0"]
[WhiteElo "2121"]
[BlackElo "1666"]
[TimeControl "300"]
[EndTime "12:59:41 PDT"]
[Termination "mightysmasher won by resignation"]

1. e4 {[%clk 0:04:58.7]} 1... e6 {[%clk 0:04:59.3]} 2. d4 {[%clk 0:04:57.4]}
2... d5 {[%clk 0:04:58.4]} 3. exd5 {[%clk 0:04:57]} 3... exd5 {[%clk 0:04:58.3]}
4. Nf3 {[%clk 0:04:56.4]} 4... c6 {[%clk 0:04:55.8]} 5. Bd3 {[%clk 0:04:55.7]}
5... Bd6 {[%clk 0:04:54.7]} 6. O-O {[%clk 0:04:54.7]} 6... Ne7 {[%clk
0:04:53.9]} 7. Bg5 {[%clk 0:04:54.3]} 7... f6 {[%clk 0:04:52.9]} 8. Bh4 {[%clk
0:04:53.3]} 8... O-O {[%clk 0:04:51.7]} 9. c3 {[%clk 0:04:52.4]} 9... Bf5 {[%clk
0:04:50.7]} 10. Bg3 {[%clk 0:04:50.1]} 10... Bxd3 {[%clk 0:04:49.1]} 11. Qxd3
{[%clk 0:04:49.1]} 11... Bxg3 {[%clk 0:04:46.3]} 12. hxg3 {[%clk 0:04:47.9]}
12... Na6 {[%clk 0:04:36.2]} 13. Nbd2 {[%clk 0:04:46.5]} 13... Qd7 {[%clk
0:04:33.5]} 14. Rfe1 {[%clk 0:04:45.4]} 14... Ng6 {[%clk 0:04:27.8]} 15. Nb3
{[%clk 0:04:43.4]} 15... Rfe8 {[%clk 0:04:26.2]} 16. Rad1 {[%clk 0:04:40.7]}
16... Rxe1+ {[%clk 0:04:23.4]} 17. Rxe1 {[%clk 0:04:39.3]} 17... Re8 {[%clk
0:04:22.5]} 18. Rxe8+ {[%clk 0:04:38.6]} 18... Qxe8 {[%clk 0:04:21.4]} 19. Nc5
{[%clk 0:04:38.1]} 19... Nxc5 {[%clk 0:04:19.8]} 20. dxc5 {[%clk 0:04:37.2]}
20... Qe7 {[%clk 0:04:14.4]} 21. b4 {[%clk 0:04:35.8]} 21... Ne5 {[%clk
0:04:07]} 22. Qf5 {[%clk 0:04:32.9]} 22... Nxf3+ {[%clk 0:04:03.6]} 23. gxf3
{[%clk 0:04:31.9]} 23... g6 {[%clk 0:03:16.3]} 24. Qc8+ {[%clk 0:04:29.6]} 24...
Kg7 {[%clk 0:03:10.9]} 25. Kg2 {[%clk 0:04:26.3]} 25... h5 {[%clk 0:02:49.4]}
26. a4 {[%clk 0:04:24.5]} 26... g5 {[%clk 0:02:46.6]} 27. b5 {[%clk 0:04:23.3]}
27... cxb5 {[%clk 0:02:45]} 28. axb5 {[%clk 0:04:22]} 28... Kg6 {[%clk
0:02:39.8]} 29. c6 {[%clk 0:04:20.5]} 29... g4 {[%clk 0:02:33.6]} 30. fxg4
{[%clk 0:04:14.6]} 30... Qe4+ {[%clk 0:02:28]} 31. Kh2 {[%clk 0:04:12.4]} 31...
hxg4 {[%clk 0:02:19.7]} 32. cxb7 {[%clk 0:04:10.8]} 32... Qf3 {[%clk 0:02:11.9]}
33. Qc5 {[%clk 0:04:09.4]} 33... d4 {[%clk 0:01:41]} 34. Qxd4 {[%clk 0:04:07.1]}
34... Qxb7 {[%clk 0:01:39.6]} 35. Qxg4+ {[%clk 0:04:06]} 35... Kf7 {[%clk
0:01:38.4]} 36. c4 {[%clk 0:04:05.2]} 36... Qb6 {[%clk 0:01:28.5]} 37. Qf4
{[%clk 0:04:01.2]} 37... Qc5 {[%clk 0:01:24.8]} 38. g4 {[%clk 0:03:59.5]} 38...
Kg6 {[%clk 0:00:59.9]} 39. Qf5+ {[%clk 0:03:56.9]} 39... Qxf5 {[%clk 0:00:58]}
40. gxf5+ {[%clk 0:03:56.3]} 40... Kxf5 {[%clk 0:00:57.6]} 41. c5 {[%clk
0:03:55.6]} 41... Ke5 {[%clk 0:00:56.9]} 42. Kg3 {[%clk 0:03:54]} 42... Kd5
{[%clk 0:00:56]} 43. c6 {[%clk 0:03:52.8]} 43... Kd6 {[%clk 0:00:54.3]} 44. Kf4
{[%clk 0:03:51.9]} 44... Kc7 {[%clk 0:00:53.5]} 45. Kf5 {[%clk 0:03:51.3]} 45...
a6 {[%clk 0:00:49.5]} 46. bxa6 {[%clk 0:03:49.9]} 46... Kxc6 {[%clk 0:00:48.8]}
47. Kxf6 {[%clk 0:03:49.4]} 47... Kb6 {[%clk 0:00:48.2]} 48. Ke7 {[%clk
0:03:49]} 48... Kxa6 {[%clk 0:00:47.7]} 49. f4 {[%clk 0:03:48.6]} 49... Kb5
{[%clk 0:00:46.8]} 50. f5 {[%clk 0:03:47.7]} 50... Kc5 {[%clk 0:00:46.5]} 51. f6
{[%clk 0:03:47.1]} 51... Kd5 {[%clk 0:00:46.2]} 52. f7 {[%clk 0:03:46.7]} 1-0

[Event "Live Chess"]
[Site "Chess.com"]
[Date "2023.05.20"]
[Round "-"]
[White "kevinmilleruk"]
[Black "SiDebanks"]
[Result "1-0"]
[WhiteElo "1143"]
[BlackElo "1372"]
[TimeControl "300"]
[EndTime "12:59:44 PDT"]
[Termination "kevinmilleruk won on time"]

1. c4 {[%clk 0:04:58.8]} 1... e6 {[%clk 0:04:58.6]} 2. Nc3 {[%clk 0:04:57]} 2...
d5 {[%clk 0:04:58.5]} 3. cxd5 {[%clk 0:04:55]} 3... exd5 {[%clk 0:04:58.4]} 4.
d4 {[%clk 0:04:52.2]} 4... Nf6 {[%clk 0:04:57.8]} 5. Bg5 {[%clk 0:04:49.3]} 5...
Be7 {[%clk 0:04:56.3]} 6. g3 {[%clk 0:04:48.2]} 6... h6 {[%clk 0:04:55]} 7. Bxf6
{[%clk 0:04:45.8]} 7... Bxf6 {[%clk 0:04:54.9]} 8. Bg2 {[%clk 0:04:45]} 8... c6
{[%clk 0:04:50.6]} 9. Nf3 {[%clk 0:04:42.5]} 9... O-O {[%clk 0:04:48.6]} 10. O-O
{[%clk 0:04:40.6]} 10... Re8 {[%clk 0:04:45.2]} 11. e3 {[%clk 0:04:36.3]} 11...
Bg4 {[%clk 0:04:42]} 12. h3 {[%clk 0:04:31.5]} 12... Bxf3 {[%clk 0:04:36.8]} 13.
Qxf3 {[%clk 0:04:29.2]} 13... Nd7 {[%clk 0:04:30.6]} 14. Rad1 {[%clk 0:04:18.1]}
14... Qb6 {[%clk 0:04:19.2]} 15. b3 {[%clk 0:04:13.4]} 15... Qc7 {[%clk
0:04:12.5]} 16. h4 {[%clk 0:04:07.2]} 16... a5 {[%clk 0:04:08.3]} 17. Kh2 {[%clk
0:03:56]} 17... Bxh4 {[%clk 0:03:57.3]} 18. Kh3 {[%clk 0:03:39.7]} 18... Bf6
{[%clk 0:03:54.8]} 19. e4 {[%clk 0:03:33.2]} 19... dxe4 {[%clk 0:03:51.3]} 20.
Nxe4 {[%clk 0:03:26.9]} 20... Qc8 {[%clk 0:03:43.7]} 21. Nd6 {[%clk 0:03:24.3]}
21... Ne5+ {[%clk 0:03:20.4]} 22. Nxc8 {[%clk 0:03:09.9]} 22... Nxf3 {[%clk
0:03:16.6]} 23. Bxf3 {[%clk 0:03:06.2]} 23... Raxc8 {[%clk 0:03:13.5]} 24. d5
{[%clk 0:02:59.5]} 24... cxd5 {[%clk 0:02:58]} 25. Rxd5 {[%clk 0:02:57.3]} 25...
b6 {[%clk 0:02:41.1]} 26. Rd6 {[%clk 0:02:51.2]} 26... Re6 {[%clk 0:02:13.8]}
27. Rd7 {[%clk 0:02:42]} 27... Rce8 {[%clk 0:02:05.2]} 28. Bd5 {[%clk
0:02:40.2]} 28... R6e7 {[%clk 0:01:57.2]} 29. Rd6 {[%clk 0:02:34.6]} 29... Bd4
{[%clk 0:01:41.3]} 30. f4 {[%clk 0:02:22.3]} 30... Bc5 {[%clk 0:01:38.7]} 31.
Rc6 {[%clk 0:02:09.9]} 31... Re2 {[%clk 0:01:26]} 32. a3 {[%clk 0:02:04.3]}
32... R2e3 {[%clk 0:01:22.9]} 33. b4 {[%clk 0:02:02.3]} 33... axb4 {[%clk
0:01:20.5]} 34. axb4 {[%clk 0:02:01.3]} 34... Bxb4 {[%clk 0:01:17.6]} 35. Rxb6
{[%clk 0:02:00.4]} 35... Bf8 {[%clk 0:01:13.6]} 36. Bc6 {[%clk 0:01:55.1]} 36...
R8e6 {[%clk 0:01:07.7]} 37. Rc1 {[%clk 0:01:49.8]} 37... Kh7 {[%clk 0:01:02.1]}
38. Kh4 {[%clk 0:01:35.3]} 38... Be7+ {[%clk 0:00:59.5]} 39. Kg4 {[%clk
0:01:31.1]} 39... Bf6 {[%clk 0:00:53.9]} 40. f5 {[%clk 0:01:21.9]} 40... Rd6
{[%clk 0:00:50.1]} 41. Kf4 {[%clk 0:01:13.8]} 41... Bg5+ {[%clk 0:00:45.9]} 42.
Kg4 {[%clk 0:01:07.3]} 42... Rd4+ {[%clk 0:00:43.5]} 43. Kh3 {[%clk 0:00:58.8]}
43... Rxg3+ {[%clk 0:00:32.4]} 44. Kxg3 {[%clk 0:00:54.4]} 44... Bxc1 {[%clk
0:00:31.5]} 45. Rb7 {[%clk 0:00:39.5]} 45... Bg5 {[%clk 0:00:28.1]} 46. Rxf7
{[%clk 0:00:34.5]} 46... Rd3+ {[%clk 0:00:25.4]} 47. Kf2 {[%clk 0:00:29.6]}
47... Rd6 {[%clk 0:00:15.7]} 48. Be4 {[%clk 0:00:27.4]} 48... Rf6 {[%clk
0:00:14.4]} 49. Rc7 {[%clk 0:00:21.9]} 49... h5 {[%clk 0:00:09.5]} 50. Kg2
{[%clk 0:00:20.3]} 50... Kh6 {[%clk 0:00:08.1]} 51. Kh3 {[%clk 0:00:19.6]} 51...
Bf4 {[%clk 0:00:05.9]} 52. Kg2 {[%clk 0:00:17.2]} 52... Bxc7 {[%clk 0:00:04.5]}
53. Kf3 {[%clk 0:00:16.1]} 53... Kg5 {[%clk 0:00:03.5]} 54. Ke3 {[%clk
0:00:13.9]} 54... h4 {[%clk 0:00:02.1]} 55. Kf3 {[%clk 0:00:12.9]} 55... h3
{[%clk 0:00:02]} 56. Kf2 {[%clk 0:00:12]} 56... Rh6 {[%clk 0:00:01.2]} 57. Kf3
{[%clk 0:00:11.1]} 57... h2 {[%clk 0:00:01.1]} 58. Kg2 {[%clk 0:00:10.9]} 58...
h1=Q+ {[%clk 0:00:00.6]} 59. Kf2 {[%clk 0:00:09.8]} 59... Rh3 {[%clk 0:00:00.3]}
60. Ke2 {[%clk 0:00:08.6]} 1-0

[Event "Live Chess"]
[Site "Chess.com"]
[Date "2023.05.20"]
[Round "-"]
[White "Goblinbasher"]
[Black "booktrunk"]
[Result "1-0"]
[WhiteElo "1211"]
[BlackElo "1292"]
[TimeControl "300"]
[EndTime "12:59:46 PDT"]
[Termination "Goblinbasher won by resignation"]

1. e4 {[%clk 0:04:58]} 1... d5 {[%clk 0:04:59.9]} 2. exd5 {[%clk 0:04:56.7]}
2... Qxd5 {[%clk 0:04:58.6]} 3. d4 {[%clk 0:04:56.3]} 3... Nc6 {[%clk
0:04:54.9]} 4. Nc3 {[%clk 0:04:55.4]} 4... Qh5 {[%clk 0:04:51.3]} 5. Qxh5 {[%clk
0:04:52.5]} 5... Nf6 {[%clk 0:04:41.5]} 6. Qd1 {[%clk 0:04:44.5]} 6... Bd7
{[%clk 0:04:38.5]} 7. Nf3 {[%clk 0:04:43]} 7... O-O-O {[%clk 0:04:36.8]} 8. Bg5
{[%clk 0:04:39.1]} 8... Nh5 {[%clk 0:04:33.7]} 9. g3 {[%clk 0:04:31.1]} 9... g6
{[%clk 0:04:31.6]} 10. a3 {[%clk 0:04:21.2]} 10... f6 {[%clk 0:04:30.4]} 11. Bd2
{[%clk 0:04:18.1]} 11... a6 {[%clk 0:04:24.6]} 12. Qe2 {[%clk 0:04:10.3]} 12...
Bg4 {[%clk 0:04:22.2]} 13. O-O-O {[%clk 0:04:07.7]} 13... Kb8 {[%clk 0:04:16.4]}
14. Bg2 {[%clk 0:03:59.2]} 14... Ng7 {[%clk 0:04:09.6]} 15. h3 {[%clk 0:03:58]}
15... Bd7 {[%clk 0:04:06.9]} 16. Na4 {[%clk 0:03:50.7]} 16... Na7 {[%clk
0:04:01.2]} 17. Nc5 {[%clk 0:03:43]} 17... Bb5 {[%clk 0:03:56.3]} 18. Qe4 {[%clk
0:03:25.5]} 18... Bc6 {[%clk 0:03:50.7]} 19. Qd3 {[%clk 0:03:23]} 19... e5
{[%clk 0:03:47.4]} 20. Qf1 {[%clk 0:03:15.5]} 20... exd4 {[%clk 0:03:44.2]} 21.
Nxa6+ {[%clk 0:03:06.7]} 21... bxa6 {[%clk 0:03:42]} 22. Qxa6 {[%clk 0:03:05.7]}
22... Bb7 {[%clk 0:03:40.4]} 23. Qc4 {[%clk 0:02:58]} 23... Nf5 {[%clk
0:03:31.7]} 24. Rhg1 {[%clk 0:02:55.9]} 24... Nd6 {[%clk 0:03:23.1]} 25. Qxd4
{[%clk 0:02:48.3]} 25... Ne4 {[%clk 0:03:20.5]} 26. Qe3 {[%clk 0:02:39.4]} 26...
Bc5 {[%clk 0:03:16.9]} 27. Qb3 {[%clk 0:02:31.4]} 27... Bxf2 {[%clk 0:03:05.3]}
28. Be3 {[%clk 0:02:26.3]} 28... Bxg1 {[%clk 0:02:53.5]} 29. Rxd8+ {[%clk
0:02:22.2]} 29... Rxd8 {[%clk 0:02:50.1]} 30. Bxg1 {[%clk 0:02:17.8]} 30... Nxg3
{[%clk 0:02:47.7]} 31. Bxa7+ {[%clk 0:02:12]} 31... Kxa7 {[%clk 0:02:46.3]} 32.
Nd2 {[%clk 0:02:04.2]} 32... Bxg2 {[%clk 0:02:43.1]} 33. Qxg3 {[%clk 0:02:02.9]}
33... Bb7 {[%clk 0:02:34.8]} 34. Qxc7 {[%clk 0:01:57.9]} 34... Rc8 {[%clk
0:02:34]} 35. Qxh7 {[%clk 0:01:55]} 35... Re8 {[%clk 0:02:21.5]} 36. Qh4 {[%clk
0:01:45.1]} 36... g5 {[%clk 0:02:15.8]} 37. Qd4+ {[%clk 0:01:41]} 37... Ka8
{[%clk 0:02:13.7]} 38. c3 {[%clk 0:01:34.7]} 38... Rc8 {[%clk 0:02:04.3]} 39.
Qxf6 {[%clk 0:01:32.4]} 39... Rg8 {[%clk 0:01:58.4]} 40. b4 {[%clk 0:01:26.1]}
40... g4 {[%clk 0:01:56.3]} 41. hxg4 {[%clk 0:01:24.7]} 41... Rxg4 {[%clk
0:01:55.3]} 42. Kc2 {[%clk 0:01:22.1]} 42... Rg2 {[%clk 0:01:52.2]} 43. Qf4
{[%clk 0:01:16.2]} 43... Ka7 {[%clk 0:01:46.1]} 44. Kb3 {[%clk 0:01:13.4]} 44...
Ka8 {[%clk 0:01:40.4]} 45. Nc4 {[%clk 0:01:12.2]} 45... Bd5 {[%clk 0:01:37.3]}
46. Qf8+ {[%clk 0:01:03.2]} 46... Kb7 {[%clk 0:01:30.5]} 47. Qe7+ {[%clk
0:01:02]} 47... Ka8 {[%clk 0:01:25.5]} 48. Qd8+ {[%clk 0:01:00]} 48... Ka7
{[%clk 0:01:23.4]} 49. Qxd5 {[%clk 0:00:58.9]} 1-0

[Event "Live Chess"]
[Site "Chess.com"]
[Date "2023.05.20"]
[Round "-"]
[White "AttackingSnowLeopard"]
[Black "SavagePawn7"]
[Result "1-0"]
[WhiteElo "2053"]
[BlackElo "794"]
[TimeControl "300"]
[EndTime "12:59:52 PDT"]
[Termination "AttackingSnowLeopard won by resignation"]

1. e4 {[%clk 0:04:57.8]} 1... d5 {[%clk 0:04:57.4]} 2. exd5 {[%clk 0:04:56.4]}
2... Nf6 {[%clk 0:04:56.2]} 3. Nc3 {[%clk 0:04:55.8]} 3... Nxd5 {[%clk
0:04:54.9]} 4. Nf3 {[%clk 0:04:55.4]} 4... Nxc3 {[%clk 0:04:53.2]} 5. dxc3
{[%clk 0:04:55.3]} 5... Qxd1+ {[%clk 0:04:50.2]} 6. Kxd1 {[%clk 0:04:55.2]} 6...
Bg4 {[%clk 0:04:47.4]} 7. Be2 {[%clk 0:04:54.6]} 7... Nc6 {[%clk 0:04:36.1]} 8.
Be3 {[%clk 0:04:53.9]} 8... O-O-O+ {[%clk 0:04:33.2]} 9. Nd4 {[%clk 0:04:52.4]}
9... Nxd4 {[%clk 0:04:31]} 10. Bxg4+ {[%clk 0:04:49.1]} 10... Ne6+ {[%clk
0:04:12.4]} 11. Ke2 {[%clk 0:04:46.2]} 11... Kb8 {[%clk 0:04:08.9]} 12. Bxe6
{[%clk 0:04:40.2]} 12... fxe6 {[%clk 0:04:05.6]} 13. Rad1 {[%clk 0:04:39.7]}
13... Rxd1 {[%clk 0:03:54.2]} 14. Rxd1 {[%clk 0:04:36.5]} 14... b6 {[%clk
0:03:45.7]} 15. Rd8+ {[%clk 0:04:34.1]} 15... Kb7 {[%clk 0:03:44.5]} 16. Bg5
{[%clk 0:04:32.6]} 16... h6 {[%clk 0:03:33.6]} 17. Bxe7 {[%clk 0:04:29.6]} 17...
Bxe7 {[%clk 0:03:23.1]} 18. Rxh8 {[%clk 0:04:29]} 18... Bf6 {[%clk 0:03:18.7]}
19. Rf8 {[%clk 0:04:24.8]} 19... a5 {[%clk 0:03:13]} 20. f4 {[%clk 0:04:22.8]}
20... e5 {[%clk 0:03:10]} 21. f5 {[%clk 0:04:21.2]} 21... c5 {[%clk 0:03:03.6]}
22. g4 {[%clk 0:04:20.6]} 22... Ka6 {[%clk 0:03:00.6]} 23. Rf7 {[%clk 0:04:18]}
23... Bg5 {[%clk 0:02:53]} 24. Rxg7 {[%clk 0:04:15.9]} 1-0